[Event "Titled Tuesday Blitz August 22 Late 2023"]
[White "Blackburn, Jonathan L B"]
[Black "Przybylski, Wojciech"]
[WhiteFideId "1801090"]
[BlackFideId "1117599"]
[WhiteElo "2455"]
[BlackElo "2567"]
[Result "0-1"]
[Round "9"]
[TimeControl "180+1"]
[Date "2023.08.22"]
[WhiteClock "0:00:00"]
[BlackClock "0:00:04"]
[Board "68"]

1. d4 {[%clk 0:03:00]}  Nf6 {[%clk 0:02:58]} 2. c4 {[%clk 0:03:01]}  e6 {[%clk 0:02:57]} 3. Nf3 {[%clk 0:03:00]}  d5 {[%clk 0:02:57]} 4. Nc3 {[%clk 0:03:00]}  dxc4 {[%clk 0:02:55]} 5. e4 {[%clk 0:02:43]}  Bb4 {[%clk 0:02:54]} 6. e5 {[%clk 0:02:35]}  Nd5 {[%clk 0:02:53]} 7. Bd2 {[%clk 0:02:32]}  b5 {[%clk 0:02:51]} 8. a4 {[%clk 0:02:24]}  Bxc3 {[%clk 0:02:48]} 9. bxc3 {[%clk 0:02:20]}  c6 {[%clk 0:02:47]} 10. g3 {[%clk 0:02:14]}  O-O {[%clk 0:02:44]} 11. Bg2 {[%clk 0:02:14]}  Bd7 {[%clk 0:02:42]} 12. Qc2 {[%clk 0:02:07]}  a5 {[%clk 0:02:36]} 13. Ng5 {[%clk 0:02:06]}  g6 {[%clk 0:02:30]} 14. h4 {[%clk 0:02:00]}  h6 {[%clk 0:02:27]} 15. Ne4 {[%clk 0:01:38]}  Kg7 {[%clk 0:02:12]} 16. Nd6 {[%clk 0:01:17]}  Be8 {[%clk 0:02:03]} 17. Qc1 {[%clk 0:01:00]}  Rh8 {[%clk 0:02:01]} 18. f4 {[%clk 0:00:54]}  h5 {[%clk 0:01:56]} 19. Bxd5 {[%clk 0:00:53]}  cxd5 {[%clk 0:01:51]} 20. axb5 {[%clk 0:00:51]}  Nd7 {[%clk 0:01:48]} 21. Qa3 {[%clk 0:00:48]}  Nb6 {[%clk 0:01:45]} 22. f5 {[%clk 0:00:46]}  exf5 {[%clk 0:01:30]} 23. Bg5 {[%clk 0:00:46]}  Qd7 {[%clk 0:01:28]} 24. Bf6+ {[%clk 0:00:44]}  Kh7 {[%clk 0:01:27]} 25. Qc5 {[%clk 0:00:39]}  Rb8 {[%clk 0:01:05]} 26. Bxh8 {[%clk 0:00:38]}  Kxh8 {[%clk 0:01:03]} 27. Rxa5 {[%clk 0:00:38]}  Kg8 {[%clk 0:00:59]} 28. Kd2 {[%clk 0:00:33]}  f4 {[%clk 0:00:53]} 29. gxf4 {[%clk 0:00:20]}  Qg4 {[%clk 0:00:52]} 30. Rf1 {[%clk 0:00:20]}  Qg2+ {[%clk 0:00:46]} 31. Ke1 {[%clk 0:00:20]}  Qg3+ {[%clk 0:00:46]} 32. Rf2 {[%clk 0:00:20]}  Qxc3+ {[%clk 0:00:43]} 33. Kf1 {[%clk 0:00:20]}  Qxa5 {[%clk 0:00:36]} 34. f5 {[%clk 0:00:20]}  Nd7 {[%clk 0:00:35]} 35. Qxd5 {[%clk 0:00:16]}  Qa1+ {[%clk 0:00:22]} 36. Kg2 {[%clk 0:00:16]}  Qa8 {[%clk 0:00:22]} 37. Qxa8 {[%clk 0:00:14]}  Rxa8 {[%clk 0:00:21]} 38. e6 {[%clk 0:00:13]}  Nf8 {[%clk 0:00:11]} 39. fxg6 {[%clk 0:00:10]}  fxe6 {[%clk 0:00:09]} 40. b6 {[%clk 0:00:06]}  Bc6+ {[%clk 0:00:05]} 41. Kg3 {[%clk 0:00:06]}  Nxg6 {[%clk 0:00:05]} 42. Rf6 {[%clk 0:00:05]}  Ne7 {[%clk 0:00:05]} 43. Rxe6 {[%clk 0:00:05]}  Kf8 {[%clk 0:00:05]} 44. Rf6+ {[%clk 0:00:03]}  Kg8 {[%clk 0:00:05]} 45. Re6 {[%clk 0:00:04]}  Nd5 {[%clk 0:00:04]} 46. b7 {[%clk 0:00:03]}  Rb8 {[%clk 0:00:04]} 47. Rg6+ {[%clk 0:00:00]}  Kh7 {[%clk 0:00:04]} 0-1


[Site "https://www.chess.com"]

[Event "Titled Tuesday Blitz August 22 Late 2023"]
[White "Ganiev, Roman"]
[Black "KrokerGuy"]
[WhiteFideId "4131452"]
[WhiteElo "2562"]
[BlackElo "2454"]
[Result "0-1"]
[Round "9"]
[TimeControl "180+1"]
[Date "2023.08.22"]
[WhiteClock "0:00:02"]
[BlackClock "0:00:05"]
[Board "70"]

1. e4 {[%clk 0:03:00]}  e5 {[%clk 0:03:00]} 2. d4 {[%clk 0:02:58]}  exd4 {[%clk 0:02:59]} 3. Qxd4 {[%clk 0:02:59]}  Nc6 {[%clk 0:02:59]} 4. Qe3 {[%clk 0:02:59]}  Nf6 {[%clk 0:03:00]} 5. Nc3 {[%clk 0:02:59]}  Bb4 {[%clk 0:03:00]} 6. Bd2 {[%clk 0:03:00]}  O-O {[%clk 0:03:00]} 7. O-O-O {[%clk 0:02:59]}  Re8 {[%clk 0:02:59]} 8. Qg3 {[%clk 0:02:54]}  Rxe4 {[%clk 0:02:58]} 9. a3 {[%clk 0:02:48]}  Bd6 {[%clk 0:02:58]} 10. f4 {[%clk 0:02:48]}  Re8 {[%clk 0:02:59]} 11. Bd3 {[%clk 0:02:47]}  Bf8 {[%clk 0:03:00]} 12. Nf3 {[%clk 0:02:47]}  d5 {[%clk 0:03:00]} 13. Ng5 {[%clk 0:02:42]}  h6 {[%clk 0:02:29]} 14. h4 {[%clk 0:02:42]}  Bg4 {[%clk 0:02:24]} 15. Rdf1 {[%clk 0:02:35]}  Qd7 {[%clk 0:01:52]} 16. Qf2 {[%clk 0:01:43]}  b6 {[%clk 0:01:26]} 17. f5 {[%clk 0:01:13]}  Bc5 {[%clk 0:01:23]} 18. Qg3 {[%clk 0:01:05]}  Ne5 {[%clk 0:00:56]} 19. Kb1 {[%clk 0:00:23]}  Nh5 {[%clk 0:00:52]} 20. Qh2 {[%clk 0:00:19]}  Nxd3 {[%clk 0:00:53]} 21. cxd3 {[%clk 0:00:20]}  Bd6 {[%clk 0:00:53]} 22. Qg1 {[%clk 0:00:18]}  Ng3 {[%clk 0:00:54]} 23. f6 {[%clk 0:00:16]}  Nxh1 {[%clk 0:00:38]} 24. Qxh1 {[%clk 0:00:15]}  Be5 {[%clk 0:00:19]} 25. fxg7 {[%clk 0:00:13]}  hxg5 {[%clk 0:00:18]} 26. hxg5 {[%clk 0:00:13]}  Bxg7 {[%clk 0:00:19]} 27. Qh4 {[%clk 0:00:12]}  Bh3 {[%clk 0:00:13]} 28. gxh3 {[%clk 0:00:11]}  Re6 {[%clk 0:00:07]} 29. Qg4 {[%clk 0:00:10]}  Rae8 {[%clk 0:00:07]} 30. Kc2 {[%clk 0:00:10]}  c5 {[%clk 0:00:04]} 31. Qf5 {[%clk 0:00:09]}  Rd6 {[%clk 0:00:02]} 32. Qf3 {[%clk 0:00:08]}  c4 {[%clk 0:00:03]} 33. dxc4 {[%clk 0:00:05]}  dxc4 {[%clk 0:00:04]} 34. Bf4 {[%clk 0:00:06]}  Rd3 {[%clk 0:00:04]} 35. Qg4 {[%clk 0:00:03]}  Qxg4 {[%clk 0:00:04]} 36. hxg4 {[%clk 0:00:04]}  Bxc3 {[%clk 0:00:04]} 37. bxc3 {[%clk 0:00:05]}  Re4 {[%clk 0:00:04]} 38. Rf2 {[%clk 0:00:04]}  Kg7 {[%clk 0:00:04]} 39. Bc7 {[%clk 0:00:03]}  Rxg4 {[%clk 0:00:04]} 40. Bb8 {[%clk 0:00:03]}  a6 {[%clk 0:00:04]} 41. Ba7 {[%clk 0:00:03]}  Rgg3 {[%clk 0:00:03]} 42. Bxb6 {[%clk 0:00:03]}  Rxc3+ {[%clk 0:00:04]} 43. Kb2 {[%clk 0:00:02]}  Rb3+ {[%clk 0:00:05]} 0-1


[Site "https://www.chess.com"]

[Event "Titled Tuesday Blitz August 22 Late 2023"]
[White "Salazar Farias, Luis German"]
[Black "brm72"]
[WhiteFideId "3902170"]
[WhiteElo "2453"]
[BlackElo "2548"]
[Result "1-0"]
[Round "9"]
[TimeControl "180+1"]
[Date "2023.08.22"]
[WhiteClock "0:00:23"]
[BlackClock "0:00:56"]
[Board "71"]

1. d4 {[%clk 0:02:58]}  Nf6 {[%clk 0:02:59]} 2. c4 {[%clk 0:02:58]}  g6 {[%clk 0:02:59]} 3. Nc3 {[%clk 0:02:56]}  d5 {[%clk 0:03:00]} 4. cxd5 {[%clk 0:02:56]}  Nxd5 {[%clk 0:03:01]} 5. e4 {[%clk 0:02:56]}  Nxc3 {[%clk 0:03:00]} 6. bxc3 {[%clk 0:02:57]}  Bg7 {[%clk 0:03:00]} 7. Bc4 {[%clk 0:02:58]}  c5 {[%clk 0:03:01]} 8. Ne2 {[%clk 0:02:54]}  Nc6 {[%clk 0:03:00]} 9. Be3 {[%clk 0:02:47]}  O-O {[%clk 0:03:00]} 10. O-O {[%clk 0:02:43]}  Qc7 {[%clk 0:02:58]} 11. Rc1 {[%clk 0:02:40]}  b6 {[%clk 0:02:56]} 12. h4 {[%clk 0:02:34]}  Bb7 {[%clk 0:02:55]} 13. h5 {[%clk 0:02:33]}  Rad8 {[%clk 0:02:55]} 14. h6 {[%clk 0:02:31]}  Bf6 {[%clk 0:02:44]} 15. Nf4 {[%clk 0:02:28]}  e6 {[%clk 0:02:33]} 16. Qg4 {[%clk 0:02:18]}  Bc8 {[%clk 0:02:28]} 17. e5 {[%clk 0:01:24]}  Be7 {[%clk 0:02:17]} 18. Qg3 {[%clk 0:01:02]}  Kh8 {[%clk 0:02:04]} 19. Bb3 {[%clk 0:00:41]}  Rg8 {[%clk 0:01:56]} 20. Rfe1 {[%clk 0:00:36]}  Na5 {[%clk 0:01:43]} 21. d5 {[%clk 0:00:27]}  exd5 {[%clk 0:01:10]} 22. Nxd5 {[%clk 0:00:27]}  Qb7 {[%clk 0:01:10]} 23. Nxe7 {[%clk 0:00:26]}  Qxe7 {[%clk 0:01:11]} 24. Bg5 {[%clk 0:00:26]}  Qb7 {[%clk 0:01:00]} 25. Bf6+ {[%clk 0:00:26]}  Rg7 {[%clk 0:01:00]} 26. hxg7+ {[%clk 0:00:25]}  Kg8 {[%clk 0:01:01]} 27. Bxd8 {[%clk 0:00:26]}  c4 {[%clk 0:00:59]} 28. Bc2 {[%clk 0:00:24]}  Kxg7 {[%clk 0:00:59]} 29. Bf6+ {[%clk 0:00:24]}  Kg8 {[%clk 0:00:59]} 30. Rcd1 {[%clk 0:00:25]}  Nc6 {[%clk 0:00:58]} 31. Rd6 {[%clk 0:00:24]}  Be6 {[%clk 0:00:58]} 32. Red1 {[%clk 0:00:23]}  Qc7 {[%clk 0:00:58]} 33. Rd8+ {[%clk 0:00:21]}  Nxd8 {[%clk 0:00:58]} 34. Rxd8+ {[%clk 0:00:22]}  Qxd8 {[%clk 0:00:56]} 35. Bxd8 {[%clk 0:00:23]} 1-0


[Site "https://www.chess.com"]

[Event "Titled Tuesday Blitz August 22 Late 2023"]
[White "Onthequiet"]
[Black "ATM622"]
[WhiteElo "2440"]
[BlackElo "2525"]
[Result "0-1"]
[Round "9"]
[TimeControl "180+1"]
[Date "2023.08.22"]
[WhiteClock "0:00:28"]
[BlackClock "0:01:24"]
[Board "74"]

1. d4 {[%clk 0:03:00]}  Nf6 {[%clk 0:02:58]} 2. Nf3 {[%clk 0:03:01]}  e6 {[%clk 0:02:57]} 3. c4 {[%clk 0:03:00]}  d5 {[%clk 0:02:58]} 4. e3 {[%clk 0:02:59]}  c6 {[%clk 0:02:57]} 5. Nbd2 {[%clk 0:02:59]}  Be7 {[%clk 0:02:51]} 6. Bd3 {[%clk 0:02:59]}  O-O {[%clk 0:02:50]} 7. O-O {[%clk 0:02:59]}  b6 {[%clk 0:02:47]} 8. Re1 {[%clk 0:02:58]}  Bb7 {[%clk 0:02:46]} 9. e4 {[%clk 0:02:59]}  dxe4 {[%clk 0:02:43]} 10. Nxe4 {[%clk 0:03:00]}  c5 {[%clk 0:02:39]} 11. Nxf6+ {[%clk 0:02:42]}  Bxf6 {[%clk 0:02:39]} 12. dxc5 {[%clk 0:02:42]}  bxc5 {[%clk 0:02:38]} 13. Ne5 {[%clk 0:02:34]}  Nc6 {[%clk 0:02:32]} 14. Nxc6 {[%clk 0:02:13]}  Bxc6 {[%clk 0:02:32]} 15. Qe2 {[%clk 0:02:10]}  Rb8 {[%clk 0:02:26]} 16. Rb1 {[%clk 0:02:06]}  a5 {[%clk 0:02:21]} 17. Be3 {[%clk 0:02:00]}  Bd4 {[%clk 0:02:20]} 18. Red1 {[%clk 0:01:55]}  e5 {[%clk 0:02:13]} 19. Bxd4 {[%clk 0:01:39]}  exd4 {[%clk 0:02:12]} 20. Qh5 {[%clk 0:01:38]}  f5 {[%clk 0:02:07]} 21. f3 {[%clk 0:01:30]}  Qf6 {[%clk 0:02:04]} 22. b3 {[%clk 0:01:28]}  Rbe8 {[%clk 0:02:02]} 23. Re1 {[%clk 0:01:27]}  Re3 {[%clk 0:01:57]} 24. Rbd1 {[%clk 0:01:20]}  g6 {[%clk 0:01:49]} 25. Qh6 {[%clk 0:01:18]}  f4 {[%clk 0:01:48]} 26. h4 {[%clk 0:01:03]}  Rfe8 {[%clk 0:01:45]} 27. Rf1 {[%clk 0:00:58]}  R8e5 {[%clk 0:01:36]} 28. g3 {[%clk 0:00:39]}  Bxf3 {[%clk 0:01:28]} 29. gxf4 {[%clk 0:00:28]}  Rh5 {[%clk 0:01:24]} 0-1


[Site "https://www.chess.com"]

[Event "Titled Tuesday Blitz August 22 Late 2023"]
[White "Albertini, Luca"]
[Black "Nurgaliyeva, Zarina"]
[WhiteFideId "847038"]
[BlackFideId "13730096"]
[WhiteElo "2435"]
[BlackElo "2514"]
[Result "0-1"]
[Round "9"]
[TimeControl "180+1"]
[Date "2023.08.22"]
[WhiteClock "0:00:13"]
[BlackClock "0:01:39"]
[Board "76"]

1. d4 {[%clk 0:03:00]}  Nf6 {[%clk 0:02:58]} 2. c4 {[%clk 0:03:01]}  e6 {[%clk 0:02:58]} 3. Nc3 {[%clk 0:03:01]}  Bb4 {[%clk 0:02:52]} 4. Bg5 {[%clk 0:03:01]}  c5 {[%clk 0:02:45]} 5. a3 {[%clk 0:02:55]}  Bxc3+ {[%clk 0:02:44]} 6. bxc3 {[%clk 0:02:56]}  Qa5 {[%clk 0:02:44]} 7. Bd2 {[%clk 0:02:52]}  Ne4 {[%clk 0:02:43]} 8. Qc2 {[%clk 0:02:49]}  Nxd2 {[%clk 0:02:42]} 9. Qxd2 {[%clk 0:02:49]}  O-O {[%clk 0:02:42]} 10. e3 {[%clk 0:02:48]}  d6 {[%clk 0:02:41]} 11. Bd3 {[%clk 0:02:47]}  e5 {[%clk 0:02:39]} 12. Ne2 {[%clk 0:02:45]}  Nc6 {[%clk 0:02:34]} 13. d5 {[%clk 0:02:38]}  Ne7 {[%clk 0:02:30]} 14. e4 {[%clk 0:02:35]}  f5 {[%clk 0:02:24]} 15. f3 {[%clk 0:02:34]}  f4 {[%clk 0:02:20]} 16. O-O {[%clk 0:02:30]}  a6 {[%clk 0:02:20]} 17. Rfb1 {[%clk 0:02:27]}  Rb8 {[%clk 0:02:20]} 18. Bc2 {[%clk 0:02:20]}  g5 {[%clk 0:02:15]} 19. Nc1 {[%clk 0:02:08]}  g4 {[%clk 0:02:14]} 20. Bd1 {[%clk 0:02:07]}  h5 {[%clk 0:02:12]} 21. g3 {[%clk 0:02:00]}  Kh7 {[%clk 0:02:06]} 22. Kh1 {[%clk 0:01:52]}  Ng6 {[%clk 0:01:59]} 23. Nd3 {[%clk 0:01:44]}  fxg3 {[%clk 0:01:54]} 24. Qg5 {[%clk 0:01:38]}  Qxc3 {[%clk 0:01:46]} 25. Qxh5+ {[%clk 0:01:34]}  Kg7 {[%clk 0:01:45]} 26. Be2 {[%clk 0:00:33]}  Rh8 {[%clk 0:01:43]} 27. Qxh8+ {[%clk 0:00:25]}  Kxh8 {[%clk 0:01:41]} 28. fxg4 {[%clk 0:00:26]}  Bxg4 {[%clk 0:01:40]} 29. Bxg4 {[%clk 0:00:25]}  Qxd3 {[%clk 0:01:40]} 30. Re1 {[%clk 0:00:23]}  Nf4 {[%clk 0:01:40]} 31. hxg3 {[%clk 0:00:13]}  Qxg3 {[%clk 0:01:39]} 0-1


[Site "https://www.chess.com"]

[Event "Titled Tuesday Blitz August 22 Late 2023"]
[White "chessmateto"]
[Black "Kaplan, Avi Harrison"]
[BlackFideId "30934559"]
[WhiteElo "2432"]
[BlackElo "2514"]
[Result "0-1"]
[Round "9"]
[TimeControl "180+1"]
[Date "2023.08.22"]
[WhiteClock "0:00:05"]
[BlackClock "0:00:10"]
[Board "77"]

1. c4 {[%clk 0:03:00]}  g6 {[%clk 0:02:57]} 2. Nc3 {[%clk 0:03:00]}  Bg7 {[%clk 0:02:58]} 3. Nf3 {[%clk 0:03:00]}  d6 {[%clk 0:02:58]} 4. g3 {[%clk 0:03:01]}  Nf6 {[%clk 0:02:58]} 5. Bg2 {[%clk 0:03:01]}  O-O {[%clk 0:02:59]} 6. O-O {[%clk 0:03:02]}  Nc6 {[%clk 0:02:58]} 7. d4 {[%clk 0:03:02]}  a6 {[%clk 0:02:58]} 8. e4 {[%clk 0:02:59]}  e5 {[%clk 0:02:54]} 9. h3 {[%clk 0:02:57]}  Re8 {[%clk 0:02:49]} 10. Be3 {[%clk 0:02:50]}  exd4 {[%clk 0:02:39]} 11. Nxd4 {[%clk 0:02:50]}  Bd7 {[%clk 0:02:26]} 12. Rc1 {[%clk 0:02:46]}  h5 {[%clk 0:01:55]} 13. f4 {[%clk 0:02:36]}  Rb8 {[%clk 0:01:16]} 14. Nc2 {[%clk 0:02:29]}  b5 {[%clk 0:00:48]} 15. c5 {[%clk 0:02:29]}  b4 {[%clk 0:00:46]} 16. Nd5 {[%clk 0:01:32]}  Nxe4 {[%clk 0:00:44]} 17. cxd6 {[%clk 0:01:20]}  cxd6 {[%clk 0:00:39]} 18. Nd4 {[%clk 0:01:03]}  Nxd4 {[%clk 0:00:31]} 19. Bxd4 {[%clk 0:01:03]}  Nxg3 {[%clk 0:00:31]} 20. Bxg7 {[%clk 0:00:58]}  Kxg7 {[%clk 0:00:31]} 21. Qd4+ {[%clk 0:00:57]}  Kh6 {[%clk 0:00:31]} 22. Rfe1 {[%clk 0:00:41]}  Ne2+ {[%clk 0:00:28]} 23. Rxe2 {[%clk 0:00:41]}  Rxe2 {[%clk 0:00:29]} 24. Bf3 {[%clk 0:00:32]}  Re8 {[%clk 0:00:26]} 25. Kh2 {[%clk 0:00:25]}  Rc8 {[%clk 0:00:26]} 26. Rg1 {[%clk 0:00:24]}  Rc2+ {[%clk 0:00:26]} 27. Rg2 {[%clk 0:00:22]}  Rxg2+ {[%clk 0:00:25]} 28. Bxg2 {[%clk 0:00:23]}  Qh4 {[%clk 0:00:25]} 29. Nf6 {[%clk 0:00:22]}  Bxh3 {[%clk 0:00:06]} 30. Nxe8 {[%clk 0:00:13]}  Bd7+ {[%clk 0:00:07]} 31. Kg1 {[%clk 0:00:12]}  Qe1+ {[%clk 0:00:06]} 32. Bf1 {[%clk 0:00:12]}  Qxe8 {[%clk 0:00:07]} 33. Qxd6 {[%clk 0:00:11]}  Qe3+ {[%clk 0:00:07]} 34. Kh2 {[%clk 0:00:08]}  Qf2+ {[%clk 0:00:05]} 35. Bg2 {[%clk 0:00:09]}  Qh4+ {[%clk 0:00:05]} 36. Kg1 {[%clk 0:00:10]}  Qd8 {[%clk 0:00:04]} 37. Qxb4 {[%clk 0:00:08]}  Bb5 {[%clk 0:00:04]} 38. Qe4 {[%clk 0:00:07]}  Qd1+ {[%clk 0:00:04]} 39. Kh2 {[%clk 0:00:07]}  Qd6 {[%clk 0:00:04]} 40. Qe3 {[%clk 0:00:07]}  Kg7 {[%clk 0:00:04]} 41. Qe5+ {[%clk 0:00:07]}  Qf6 {[%clk 0:00:05]} 42. Qxf6+ {[%clk 0:00:04]}  Kxf6 {[%clk 0:00:06]} 43. Kg3 {[%clk 0:00:05]}  Kf5 {[%clk 0:00:06]} 44. Bb7 {[%clk 0:00:04]}  h4+ {[%clk 0:00:04]} 45. Kf3 {[%clk 0:00:03]}  Kf6 {[%clk 0:00:02]} 46. Bc8 {[%clk 0:00:04]}  g5 {[%clk 0:00:02]} 47. fxg5+ {[%clk 0:00:04]}  Kxg5 {[%clk 0:00:03]} 48. b3 {[%clk 0:00:03]}  f5 {[%clk 0:00:04]} 49. a4 {[%clk 0:00:04]}  Bd3 {[%clk 0:00:05]} 50. b4 {[%clk 0:00:04]}  Bc2 {[%clk 0:00:04]} 51. a5 {[%clk 0:00:05]}  Bd3 {[%clk 0:00:04]} 52. Bd7 {[%clk 0:00:03]}  Bc4 {[%clk 0:00:04]} 53. b5 {[%clk 0:00:03]}  axb5 {[%clk 0:00:05]} 54. a6 {[%clk 0:00:04]}  Bd5+ {[%clk 0:00:05]} 55. Kf2 {[%clk 0:00:04]}  b4 {[%clk 0:00:06]} 56. Bc8 {[%clk 0:00:03]}  b3 {[%clk 0:00:05]} 57. Bb7 {[%clk 0:00:03]}  b2 {[%clk 0:00:06]} 58. Bxd5 {[%clk 0:00:03]}  b1=Q {[%clk 0:00:06]} 59. a7 {[%clk 0:00:04]}  Qb6+ {[%clk 0:00:06]} 60. Kg2 {[%clk 0:00:04]}  Qxa7 {[%clk 0:00:07]} 61. Bf3 {[%clk 0:00:05]}  Qa2+ {[%clk 0:00:07]} 62. Kh1 {[%clk 0:00:04]}  Qf2 {[%clk 0:00:07]} 63. Bg2 {[%clk 0:00:05]}  Kf4 {[%clk 0:00:07]} 64. Kh2 {[%clk 0:00:06]}  Qg3+ {[%clk 0:00:07]} 65. Kh1 {[%clk 0:00:06]}  h3 {[%clk 0:00:08]} 66. Bf3 {[%clk 0:00:05]}  Ke3 {[%clk 0:00:08]} 67. Bg2 {[%clk 0:00:04]}  Kf2 {[%clk 0:00:08]} 68. Bf1 {[%clk 0:00:03]}  Qg2+ {[%clk 0:00:07]} 69. Bxg2 {[%clk 0:00:03]}  hxg2+ {[%clk 0:00:08]} 70. Kh2 {[%clk 0:00:03]}  g1=N {[%clk 0:00:08]} 71. Kh1 {[%clk 0:00:03]}  f4 {[%clk 0:00:08]} 72. Kh2 {[%clk 0:00:04]}  f3 {[%clk 0:00:09]} 73. Kh1 {[%clk 0:00:04]}  Ne2 {[%clk 0:00:10]} 74. Kh2 {[%clk 0:00:05]}  Ke3 {[%clk 0:00:11]} 75. Kh1 {[%clk 0:00:06]}  f2 {[%clk 0:00:11]} 76. Kh2 {[%clk 0:00:06]}  f1=B {[%clk 0:00:09]} 77. Kh1 {[%clk 0:00:05]}  Kf3 {[%clk 0:00:09]} 78. Kh2 {[%clk 0:00:05]}  Nf4 {[%clk 0:00:09]} 79. Kg1 {[%clk 0:00:06]}  Bg2 {[%clk 0:00:10]} 80. Kh2 {[%clk 0:00:06]}  Bh3 {[%clk 0:00:08]} 81. Kg1 {[%clk 0:00:05]}  Kg3 {[%clk 0:00:09]} 82. Kh1 {[%clk 0:00:05]}  Bg2+ {[%clk 0:00:09]} 83. Kg1 {[%clk 0:00:05]}  Nh3# {[%clk 0:00:10]} 0-1


[Site "https://www.chess.com"]

[Event "Titled Tuesday Blitz August 22 Late 2023"]
[White "Harriott, Tyrell"]
[Black "Jaskolka, Tomasz"]
[WhiteFideId "2086484"]
[BlackFideId "1170791"]
[WhiteElo "2418"]
[BlackElo "2504"]
[Result "0-1"]
[Round "9"]
[TimeControl "180+1"]
[Date "2023.08.22"]
[WhiteClock "0:00:25"]
[BlackClock "0:00:21"]
[Board "80"]

1. d4 {[%clk 0:02:47]}  d6 {[%clk 0:02:58]} 2. e3 {[%clk 0:02:48]}  Nd7 {[%clk 0:02:55]} 3. f4 {[%clk 0:02:47]}  Ngf6 {[%clk 0:02:55]} 4. Nf3 {[%clk 0:02:46]}  c6 {[%clk 0:02:48]} 5. Bd3 {[%clk 0:02:42]}  Qc7 {[%clk 0:02:48]} 6. Nbd2 {[%clk 0:02:41]}  e5 {[%clk 0:02:49]} 7. c3 {[%clk 0:02:40]}  exf4 {[%clk 0:02:47]} 8. exf4 {[%clk 0:02:40]}  Be7 {[%clk 0:02:47]} 9. O-O {[%clk 0:02:40]}  O-O {[%clk 0:02:47]} 10. Nh4 {[%clk 0:02:39]}  Re8 {[%clk 0:02:42]} 11. Qf3 {[%clk 0:02:26]}  Bf8 {[%clk 0:02:38]} 12. Nf5 {[%clk 0:02:24]}  Nb6 {[%clk 0:02:27]} 13. Qg3 {[%clk 0:02:24]}  Bxf5 {[%clk 0:02:27]} 14. Bxf5 {[%clk 0:02:23]}  Nbd5 {[%clk 0:02:26]} 15. Nf3 {[%clk 0:02:21]}  Ne3 {[%clk 0:02:18]} 16. Bxe3 {[%clk 0:02:16]}  Rxe3 {[%clk 0:02:19]} 17. Qh4 {[%clk 0:02:12]}  Qe7 {[%clk 0:01:57]} 18. Rf2 {[%clk 0:02:07]}  Re8 {[%clk 0:01:49]} 19. Raf1 {[%clk 0:02:05]}  g6 {[%clk 0:01:46]} 20. Bb1 {[%clk 0:02:01]}  Ne4 {[%clk 0:01:45]} 21. Ng5 {[%clk 0:01:41]}  h6 {[%clk 0:01:24]} 22. Bxe4 {[%clk 0:01:30]}  hxg5 {[%clk 0:01:12]} 23. fxg5 {[%clk 0:01:20]}  Qxe4 {[%clk 0:01:06]} 24. Rf4 {[%clk 0:01:16]}  Qe6 {[%clk 0:00:57]} 25. Rxf7 {[%clk 0:00:56]}  Qxf7 {[%clk 0:00:58]} 26. Rxf7 {[%clk 0:00:55]}  Kxf7 {[%clk 0:00:58]} 27. Qf4+ {[%clk 0:00:50]}  Kg8 {[%clk 0:00:58]} 28. Qf6 {[%clk 0:00:45]}  R3e6 {[%clk 0:00:55]} 29. Qf3 {[%clk 0:00:42]}  Bg7 {[%clk 0:00:53]} 30. h3 {[%clk 0:00:41]}  Rf8 {[%clk 0:00:50]} 31. Qd3 {[%clk 0:00:39]}  d5 {[%clk 0:00:47]} 32. Qg3 {[%clk 0:00:38]}  Rf7 {[%clk 0:00:21]} 33. Qb8+ {[%clk 0:00:36]}  Bf8 {[%clk 0:00:20]} 34. Qxa7 {[%clk 0:00:35]}  Re1+ {[%clk 0:00:20]} 35. Kh2 {[%clk 0:00:25]}  Bd6+ {[%clk 0:00:21]} 0-1


[Site "https://www.chess.com"]